fUSD/lending_fUSD_20240521
["ID","MTS","AMOUNT","RATE_DAILY","PERIOD"]
[327681381,1716313844898,-500.0,0.0003041,6]
[327681383,1716313844908,-704.45,0.0003041,6]
[327681385,1716313844919,-500.0,0.0003041,6]
[327681387,1716313844928,-519.53,0.0003041,6]
[327681389,1716313844938,-500.0,0.0003041,6]
[327681391,1716313844949,-500.0,0.0003041,6]
[327681393,1716313844959,-500.0,0.0003041,6]
[327681395,1716313844974,-500.0,0.0003041,6]
[327681397,1716313844984,-500.0,0.0003041,6]
[327681399,1716313844994,-500.0,0.0003041,6]
[327681401,1716313845006,-500.0,0.0003041,6]
[327681403,1716313845017,-879.68,0.0003041,6]
[327681405,1716313845026,-500.0,0.0003041,6]
[327681407,1716313845037,-500.0,0.0003041,6]
[327681409,1716313845048,-228.15568,0.0003041,7]
[327681410,1716313845058,-500.0,0.0003041,6]
[327681411,1716313845068,-500.0,0.0003041,6]
[327681412,1716313845080,-500.0,0.0003041,6]
[327681413,1716313845090,-591.15,0.0003041,6]
[327681414,1716313845100,-500.0,0.0003041,6]
[327681415,1716313845110,-500.0,0.0003041,6]
[327681416,1716313845121,-624.22278294,0.0003041,6]
[327681417,1716313845131,-500.0,0.0003041,6]
[327681418,1716313845141,-500.0,0.0003041,6]
[327681419,1716313845151,-500.0,0.0003041,6]
[327681420,1716313845161,-500.0,0.0003041,6]
[327681421,1716313845171,-500.0,0.0003041,6]
[327681422,1716313845181,-500.0,0.0003041,6]
[327681423,1716313845192,-500.0,0.0003041,6]
[327681424,1716313845201,-500.0,0.0003041,6]
[327681425,1716313845211,-500.0,0.0003041,6]
[327681426,1716313845220,-1788.63,0.0003041,6]
[327681427,1716313845232,-500.0,0.0003041,6]
[327681428,1716313845242,-500.0,0.0003041,6]
[327681429,1716313845252,-500.0,0.0003041,6]
[327681430,1716313845262,-404.335749,0.0003041,6]
[327681431,1716313845272,-500.0,0.0003041,6]
[327681432,1716313845283,-837.66,0.0003041,6]
[327681433,1716313845292,-856.76,0.0003041,6]
[327681434,1716313845302,-500.0,0.0003041,6]
[327681435,1716313845312,-500.0,0.0003041,6]
[327681436,1716313845321,-370.3987163,0.0003041,6]
[327681437,1716313845333,-500.0,0.0003041,6]
[327681438,1716313845342,-561.17,0.0003041,6]
[327681439,1716313845352,-641.1,0.0003041,6]
[327681440,1716313845362,-668.81,0.0003041,6]
[327681441,1716313845371,-500.0,0.0003041,6]
[327681442,1716313845381,-752.65,0.0003041,6]
[327681443,1716313845392,-513.96,0.0003041,6]
[327681444,1716313845402,-221.1770614,0.0003041,6]
[327681445,1716313845412,-500.0,0.0003041,6]
[327681446,1716313845423,-563.35,0.0003041,6]
[327681447,1716313845432,-150.54159572,0.0003041,6]
[327681448,1716313845443,-853.3,0.0003041,6]
[327681449,1716313845453,-500.0,0.0003041,6]
[327681450,1716313845463,-500.0,0.0003041,6]
[327681451,1716313845473,-500.0,0.0003041,6]
[327681452,1716313845483,-565.02,0.0003041,6]
[327681453,1716313845494,-796.43,0.0003041,6]
[327681454,1716313845504,-500.0,0.0003041,6]
[327681455,1716313845514,-151.0,0.0003041,7]
[327681456,1716313845524,-500.0,0.0003041,6]
[327681457,1716313845534,-518.76,0.0003041,6]
[327681458,1716313845545,-500.0,0.0003041,6]
[327681459,1716313845556,-151.76488,0.0003041,7]
[327681460,1716313845565,-500.0,0.0003041,6]
[327681461,1716313845575,-500.0,0.0003041,6]
[327681462,1716313845588,-500.0,0.0003041,6]
[327681463,1716313845598,-500.0,0.0003041,6]
[327681464,1716313845607,-500.0,0.0003041,6]
[327681465,1716313845617,-537.82,0.0003041,6]
[327681466,1716313845628,-500.0,0.0003041,6]
[327681467,1716313845640,-500.0,0.0003041,6]
[327681468,1716313845649,-331.81,0.0003041,6]
[327681469,1716313845660,-707.8,0.0003041,6]
[327681470,1716313845670,-500.0,0.0003041,6]
[327681471,1716313845680,-500.0,0.0003041,6]
[327681472,1716313845690,-500.0,0.0003041,6]
[327681473,1716313845699,-835.97,0.0003041,6]
[327681474,1716313845709,-500.0,0.0003041,6]
[327681475,1716313845720,-500.0,0.0003041,6]
[327681476,1716313845730,-500.0,0.0003041,6]
[327681477,1716313845739,-559.06,0.0003041,6]
[327681478,1716313845750,-500.0,0.0003041,6]
[327681479,1716313845759,-500.0,0.0003041,6]
[327681480,1716313845769,-648.06,0.0003041,6]
[327681481,1716313845779,-500.0,0.0003041,6]
[327681482,1716313845789,-151.0,0.0003041,7]
[327681483,1716313845800,-260.02225565,0.0003041,6]
[327681484,1716313845810,-500.0,0.0003041,6]
[327681485,1716313845820,-500.0,0.0003041,6]
[327681486,1716313845831,-629.23,0.0003041,6]
[327681489,1716313845842,-794.39,0.0003041,6]
[327681491,1716313845852,-500.0,0.0003041,6]
[327681493,1716313845862,-500.0,0.0003041,6]
[327681494,1716313845872,-500.0,0.0003041,6]
[327681495,1716313845882,-632.69,0.0003041,6]
[327681496,1716313845892,-500.0,0.0003041,6]
[327681497,1716313845901,-1513.67,0.0003041,6]
[327681498,1716313845911,-500.0,0.0003041,6]
[327681501,1716313846196,-930.6,0.0003041,6]
[327681502,1716313846207,-525.79941974,0.0003041,6]
[327681503,1716313846216,-512.98,0.0003041,6]
[327681504,1716313846226,-500.0,0.0003041,6]
[327681505,1716313846236,-170.921437,0.0003041,7]
[327681506,1716313846246,-500.0,0.0003041,6]
[327681507,1716313846256,-500.0,0.0003041,6]
[327681508,1716313846265,-1288.05,0.0003041,6]
[327681509,1716313846275,-500.0,0.0003041,6]
[327681510,1716313846285,-500.0,0.0003041,6]
[327681511,1716313846295,-500.0,0.0003041,6]
[327681512,1716313846305,-500.0,0.0003041,6]
[327681513,1716313846315,-500.0,0.0003041,6]
[327681514,1716313846325,-500.0,0.0003041,6]
[327681515,1716313846336,-500.0,0.0003041,6]
[327681516,1716313846346,-500.0,0.0003041,6]
[327681517,1716313846356,-500.0,0.0003041,6]
[327681518,1716313846365,-948.69,0.0003041,6]
[327681519,1716313846375,-543.00686333,0.0003041,6]
[327681520,1716313846385,-500.0,0.0003041,6]
[327681521,1716313846395,-500.0,0.0003041,6]
[327681522,1716313846405,-500.0,0.0003041,6]
[327681523,1716313846415,-500.0,0.0003041,6]
[327681524,1716313846424,-785.32,0.0003041,6]
[327681525,1716313846435,-624.81,0.0003041,6]
[327681526,1716313846445,-500.0,0.0003041,6]
[327681527,1716313846455,-500.0,0.0003041,6]
[327681528,1716313846465,-1028.13,0.0003041,6]
[327681529,1716313846475,-500.0,0.0003041,6]
[327681530,1716313846484,-579.36,0.0003041,6]
[327681531,1716313846494,-500.0,0.0003041,6]
[327681532,1716313846504,-500.0,0.0003041,6]
[327681533,1716313846514,-500.0,0.0003041,6]
[327681534,1716313846523,-500.0,0.0003041,6]
[327681535,1716313846533,-587.41,0.0003041,6]
[327681536,1716313846543,-1664.19,0.0003041,6]
[327681537,1716313846553,-725.53,0.0003041,6]
[327681538,1716313846563,-500.0,0.0003041,6]
[327681539,1716313846572,-584.62,0.0003041,6]
[327681540,1716313846584,-533.41,0.0003041,6]
[327681541,1716313846594,-500.0,0.0003041,6]
[327681542,1716313846604,-500.0,0.0003041,6]
[327681543,1716313846613,-1067.84,0.0003041,6]
[327681544,1716313846623,-500.0,0.0003041,6]
[327681545,1716313846632,-641.82,0.0003041,6]
[327681546,1716313846643,-552.41,0.0003041,6]
[327681547,1716313846652,-580.9,0.0003041,6]
[327681549,1716313846662,-500.0,0.0003041,6]
[327681550,1716313846672,-151.0,0.0003041,7]
[327681551,1716313846682,-690.08,0.0003041,6]
[327681552,1716313846692,-500.0,0.0003041,6]
[327681553,1716313846702,-1145.1,0.0003041,6]
[327681554,1716313846712,-500.0,0.0003041,6]
[327681555,1716313846722,-576.62,0.0003041,6]
[327681556,1716313846732,-500.0,0.0003041,6]
[327681557,1716313846741,-829.09,0.0003041,6]
[327681558,1716313846751,-500.0,0.0003041,6]
[327681559,1716313846761,-1375.15,0.0003041,6]
[327681560,1716313846771,-500.0,0.0003041,6]
[327681561,1716313846780,-663.55,0.0003041,6]
[327681562,1716313846789,-500.0,0.0003041,6]
[327681563,1716313846799,-630.27,0.0003041,6]
[327681564,1716313846808,-856.08,0.0003041,6]
[327681565,1716313846818,-522.51088708,0.0003041,6]
[327681566,1716313846827,-500.0,0.0003041,6]
[327681567,1716313846838,-816.6,0.0003041,6]
[327681568,1716313846848,-654.06,0.0003041,6]
[327681569,1716313846857,-500.0,0.0003041,6]
[327681570,1716313846868,-716.43,0.0003041,6]
[327681571,1716313846879,-1509.0,0.0003041,6]
[327681572,1716313846889,-1081.87,0.0003041,6]
[327681573,1716313846899,-872.69,0.0003041,6]
[327681574,1716313846909,-500.0,0.0003041,6]
[327681575,1716313846919,-990.26,0.0003041,6]
[327681576,1716313846929,-613.1,0.0003041,6]
[327681577,1716313846940,-500.0,0.0003041,6]
[327681578,1716313846950,-1133.38,0.0003041,6]
[327681579,1716313846960,-500.0,0.0003041,6]
[327681580,1716313846974,-541.20501953,0.0003041,6]
[327681581,1716313846984,-500.0,0.0003041,6]
[327681582,1716313846994,-500.0,0.0003041,6]
[327681583,1716313847003,-500.0,0.0003041,6]
[327681584,1716313847014,-500.0,0.0003041,6]
[327681585,1716313847024,-500.0,0.0003041,6]
[327681586,1716313847035,-731.7,0.0003041,6]
[327681587,1716313847045,-706.25,0.0003041,6]
[327681588,1716313847058,-500.0,0.0003041,6]
[327681589,1716313847068,-694.68,0.0003041,6]
[327681590,1716313847078,-775.16,0.0003041,6]
[327681591,1716313847089,-500.0,0.0003041,6]
[327681592,1716313847098,-502.08,0.0003041,6]
[327681593,1716313847107,-500.0,0.0003041,6]
[327681594,1716313847118,-933.32,0.0003041,6]
[327681595,1716313847127,-500.0,0.0003041,6]
[327681596,1716313847137,-962.37,0.0003041,6]
[327681597,1716313847146,-1103.13,0.0003041,6]
[327681598,1716313847156,-500.0,0.0003041,6]
[327681599,1716313847165,-500.0,0.0003041,6]
[327681600,1716313847179,-500.0,0.0003041,6]
[327681601,1716313847189,-664.64,0.0003041,6]
[327681602,1716313847200,-634.85,0.0003041,6]
[327681603,1716313847210,-995.11,0.0003041,6]
[327681604,1716313847220,-500.0,0.0003041,6]
[327681605,1716313847230,-500.0,0.0003041,6]
[327681606,1716313847240,-500.0,0.0003041,6]
[327681607,1716313847249,-500.0,0.0003041,6]
[327681608,1716313847260,-1328.69,0.0003041,6]
[327681609,1716313847270,-500.0,0.0003041,6]
[327681610,1716313847280,-531.24,0.0003041,6]
[327681611,1716313847290,-500.0,0.0003041,6]
[327681612,1716313847300,-631.92,0.0003041,6]
[327681613,1716313847310,-1121.95,0.0003041,6]
[327681614,1716313847319,-629.85,0.0003041,6]
[327681615,1716313847330,-500.0,0.0003041,6]
[327681616,1716313847340,-500.0,0.0003041,6]
[327681617,1716313847350,-500.0,0.0003041,6]
[327681618,1716313847360,-500.0,0.0003041,6]
[327681619,1716313847370,-564.01,0.0003041,6]
[327681620,1716313847381,-589.77,0.0003041,6]
[327681621,1716313847391,-500.0,0.0003041,6]
[327681622,1716313847401,-500.0,0.0003041,6]
[327681623,1716313847412,-500.0,0.0003041,6]
[327681624,1716313847422,-150.0,0.0003041,6]
[327681625,1716313847432,-500.0,0.0003041,6]
[327681626,1716313847442,-500.0,0.0003041,6]
[327681627,1716313847452,-500.0,0.0003041,6]
[327681628,1716313847462,-1270.39,0.0003041,6]
[327681629,1716313847471,-805.53,0.0003041,6]
[327681630,1716313847481,-568.14,0.0003041,6]
[327681631,1716313847491,-790.84,0.0003041,6]
[327681632,1716313847501,-500.0,0.0003041,6]
[327681633,1716313847510,-591.9,0.0003041,6]
[327681634,1716313847519,-151.0,0.0003041,7]
[327681635,1716313847529,-820.19,0.0003041,6]
[327681636,1716313847539,-500.0,0.0003041,6]
[327681637,1716313847548,-500.0,0.0003041,6]
[327681638,1716313847558,-571.33,0.0003041,6]
[327681639,1716313847568,-634.19,0.0003041,6]
[327681640,1716313847577,-570.98,0.0003041,6]
[327681641,1716313847587,-537.12,0.0003041,6]
[327681642,1716313847596,-500.0,0.0003041,6]
[327681643,1716313847605,-500.0,0.0003041,6]
[327681644,1716313847615,-500.0,0.0003041,6]
[327681645,1716313847624,-629.49,0.0003041,6]
[327681646,1716313847634,-500.0,0.0003041,6]
[327681647,1716313847643,-239.31998716,0.0003041,6]
[327681648,1716313847652,-1404.87,0.0003041,6]
[327681649,1716313847662,-500.0,0.0003041,6]
[327681650,1716313847672,-151.0,0.0003041,7]
[327681651,1716313847681,-516.39913848,0.0003041,6]
[327681652,1716313847691,-500.0,0.0003041,6]
[327681653,1716313847700,-754.26,0.0003041,6]
[327681654,1716313847709,-500.0,0.0003041,6]
[327681655,1716313847719,-478.75469328,0.0003041,6]
[327681656,1716313847728,-648.43,0.0003041,6]
[327681657,1716313847737,-1610.22,0.0003041,6]
[327681658,1716313847746,-500.0,0.0003041,6]
[327681659,1716313847756,-350.384779,0.0003041,7]
[327681660,1716313847765,-500.0,0.0003041,6]
[327681661,1716313847775,-853.67,0.0003041,6]
[327681662,1716313847784,-997.78,0.0003041,6]
[327681663,1716313847792,-772.0,0.0003041,6]
[327681664,1716313847801,-151.0,0.0003041,7]
[327681665,1716313847810,-350.384779,0.0003041,7]
[327681666,1716313847820,-500.0,0.0003041,6]
[327681667,1716313847829,-971.82,0.0003041,6]
[327681668,1716313847839,-500.0,0.0003041,6]
[327681669,1716313847847,-1224.47,0.0003041,6]
[327681670,1716313847857,-500.0,0.0003041,6]
[327681671,1716313847866,-151.0,0.0003041,7]
[327681672,1716313847876,-500.0,0.0003041,6]
[327681673,1716313847886,-500.0,0.0003041,6]
[327681674,1716313847895,-500.0,0.0003041,6]
[327681675,1716313847905,-154.19536797,0.0003041,6]
[327681676,1716313847914,-500.0,0.0003041,6]
[327681677,1716313847924,-1056.43,0.0003041,6]
[327681678,1716313847934,-500.0,0.0003041,6]
[327681679,1716313847943,-4821.01,0.0003041,6]
[327681680,1716313847953,-500.0,0.0003041,6]
[327681681,1716313847963,-218.63,0.0003041,6]
[327681682,1716313847973,-1727.8,0.0003041,6]
[327681683,1716313847986,-55029.83,0.0003041,6]
[327681684,1716313847996,-500.0,0.0003041,6]
[327681685,1716313848006,-500.0,0.0003041,6]
[327681686,1716313848015,-500.0,0.0003041,6]
[327681687,1716313848027,-765.99,0.0003041,6]
[327681688,1716313848037,-500.0,0.0003041,6]
[327681689,1716313848046,-151.0,0.0003041,7]
[327681690,1716313848060,-1260.2,0.0003041,6]
[327681691,1716313848070,-1024.33,0.0003041,6]
[327681692,1716313848079,-3266.69,0.0003041,6]
[327681693,1716313848090,-500.0,0.0003041,6]
[327681694,1716313848099,-2068.84,0.0003041,6]
[327681695,1716313848109,-507.5,0.0003041,6]
[327681696,1716313848118,-500.0,0.0003041,6]
[327681697,1716313848128,-500.0,0.0003041,6]
[327681698,1716313848137,-500.0,0.0003041,6]
[327681699,1716313848147,-890.74,0.0003041,6]
[327681700,1716313848157,-500.0,0.0003041,6]
[327681701,1716313848166,-1872.57,0.0003041,6]
[327681702,1716313848176,-500.0,0.0003041,6]
[327681703,1716313848186,-650.38,0.0003041,6]
[327681704,1716313848195,-821.97,0.0003041,6]
[327681705,1716313848205,-500.0,0.0003041,6]
[327681706,1716313848214,-4296.07,0.0003041,6]
[327681707,1716313848223,-918.56,0.0003041,6]
[327681708,1716313848232,-500.0,0.0003041,6]
[327681709,1716313848242,-500.0,0.0003041,6]
[327681710,1716313848251,-500.0,0.0003041,6]
[327681711,1716313848261,-3263.74,0.0003041,6]
[327681712,1716313848271,-4731.98,0.0003041,6]
[327681713,1716313848280,-3089.71,0.0003041,6]
[327681714,1716313848290,-895.39,0.0003041,6]
[327681715,1716313848299,-500.0,0.0003041,6]
[327681716,1716313848309,-1210.58,0.0003041,6]
[327681717,1716313848318,-1299.13,0.0003041,6]
[327681718,1716313848328,-1036.27,0.0003041,6]
[327681719,1716313848338,-500.0,0.0003041,6]
[327681720,1716313848347,-500.0,0.0003041,6]
[327681721,1716313848356,-500.0,0.0003041,6]
[327681722,1716313848366,-512.0,0.0003041,6]
[327681723,1716313848376,-500.0,0.0003041,6]
[327681724,1716313848386,-539.2,0.0003041,6]
[327681725,1716313848395,-5553.31,0.0003041,6]
[327681726,1716313848405,-21406.92,0.0003041,6]
[327681727,1716313848415,-1944.57,0.0003041,6]
[327681728,1716313848424,-500.0,0.0003041,6]
[327681729,1716313848434,-500.0,0.0003041,6]
[327681730,1716313848443,-434.96673331,0.0003041,6]
[327681731,1716313848454,-500.0,0.0003041,6]
[327681732,1716313848463,-965.03,0.0003041,6]
[327681733,1716313848473,-500.0,0.0003041,6]
[327681734,1716313848482,-500.0,0.0003041,6]
[327681735,1716313848491,-500.0,0.0003041,6]
[327681736,1716313848501,-581.62,0.0003041,6]
[327681737,1716313848510,-1476.86,0.0003041,6]
[327681738,1716313848520,-818.21,0.0003041,6]
[327681739,1716313848529,-815.88,0.0003041,6]
[327681740,1716313848538,-1607.16,0.0003041,6]
[327681741,1716313848548,-1727.6,0.0003041,6]
[327681742,1716313848558,-500.0,0.0003041,6]
[327681743,1716313848567,-536.04,0.0003041,6]
[327681744,1716313848577,-500.0,0.0003041,6]
[327681745,1716313848587,-500.0,0.0003041,6]
[327681746,1716313848596,-8055.41,0.0003041,6]
[327681747,1716313848605,-2836.76,0.0003041,6]
[327681748,1716313848615,-500.0,0.0003041,6]
[327681749,1716313848624,-630.95,0.0003041,6]
[327681750,1716313848633,-1020.55,0.0003041,6]
[327681751,1716313848643,-151.0,0.0003041,7]
[327681752,1716313848652,-586.35,0.0003041,6]
[327681753,1716313848661,-500.0,0.0003041,6]
[327681754,1716313848670,-500.0,0.0003041,6]
[327681755,1716313848679,-758.03,0.0003041,6]
[327681756,1716313848689,-1121.0,0.0003041,6]
[327681757,1716313848698,-500.0,0.0003041,6]
[327681758,1716313848707,-500.0,0.0003041,6]
[327681759,1716313848717,-1016.17,0.0003041,6]
[327681760,1716313848727,-501.85,0.0003041,6]
[327681761,1716313848737,-1348.06,0.0003041,6]
[327681762,1716313848746,-655.31,0.0003041,6]
[327681763,1716313848755,-2519.04,0.0003041,6]
[327681764,1716313848765,-500.0,0.0003041,6]
[327681765,1716313848775,-500.0,0.0003041,6]
[327681766,1716313848784,-500.0,0.0003041,6]
[327681767,1716313848794,-678.59,0.0003041,6]
[327681768,1716313848804,-8837.25,0.0003041,6]
[327681769,1716313848813,-964.04,0.0003041,6]
[327681770,1716313848823,-500.0,0.0003041,6]
[327681771,1716313848834,-500.0,0.0003041,6]
[327681772,1716313848843,-500.0,0.0003041,6]
[327681773,1716313848854,-500.0,0.0003041,6]
[327681774,1716313848864,-500.0,0.0003041,6]
[327681775,1716313848873,-2054.65,0.0003041,6]
[327681776,1716313848883,-500.0,0.0003041,6]
[327681777,1716313848893,-1278.74,0.0003041,6]
[327681778,1716313848902,-500.0,0.0003041,6]
[327681779,1716313848912,-500.0,0.0003041,6]
[327681780,1716313848922,-846.95,0.0003041,6]
[327681781,1716313848931,-1084.99,0.0003041,6]
[327681782,1716313848941,-500.0,0.0003041,6]
[327681783,1716313848951,-500.0,0.0003041,6]
[327681784,1716313848961,-157.14,0.0003041,6]
[327681785,1716313848975,-1432.8,0.0003041,6]
[327681786,1716313848984,-613.91,0.0003041,6]
[327681787,1716313848993,-500.0,0.0003041,6]
[327681788,1716313849003,-38548.95,0.0003041,6]
[327681789,1716313849014,-3007.65,0.0003041,6]
[327681790,1716313849023,-500.0,0.0003041,6]
[327681791,1716313849034,-5848.49,0.0003041,6]
[327681792,1716313849044,-500.0,0.0003041,6]
[327681793,1716313849056,-500.0,0.0003041,6]
[327681794,1716313849068,-1114.91,0.0003041,6]
[327681795,1716313849078,-346.2,0.0003041,6]
[327681796,1716313849088,-500.0,0.0003041,6]
[327681797,1716313849098,-500.0,0.0003041,6]
[327681798,1716313849108,-151.0,0.0003041,7]
[327681799,1716313849118,-500.0,0.0003041,6]
[327681800,1716313849127,-694.74,0.0003041,6]
[327681801,1716313849137,-500.0,0.0003041,6]
[327681802,1716313849147,-266.35463502,0.0003041,6]
[327681803,1716313849158,-500.0,0.0003041,6]
[327681804,1716313849168,-1131.67,0.0003041,6]
[327681805,1716313849177,-505.03974552,0.0003041,6]
[327681806,1716313849187,-151.0,0.0003041,7]
[327681807,1716313849197,-4937.41,0.0003041,6]
[327681808,1716313849208,-1067.55,0.0003041,6]
[327681809,1716313849217,-151.0,0.0003041,7]
[327681810,1716313849227,-566.79,0.0003041,6]
[327681811,1716313849237,-569.1,0.0003041,6]
[327681812,1716313849247,-1484.0,0.0003041,6]
[327681813,1716313849257,-549.12619672,0.0003041,6]
[327681814,1716313849267,-500.0,0.0003041,6]
[327681815,1716313849277,-1978.37,0.0003041,6]
[327681816,1716313849288,-500.0,0.0003041,6]
[327681817,1716313849298,-519.57474744,0.0003041,6]
[327681818,1716313849308,-500.0,0.0003041,6]
[327681819,1716313849318,-500.0,0.0003041,6]
[327681820,1716313849328,-500.0,0.0003041,6]
[327681821,1716313849340,-500.0,0.0003041,6]
[327681822,1716313849349,-1325.46,0.0003041,6]
[327681823,1716313849359,-500.0,0.0003041,6]
[327681824,1716313849369,-500.0,0.0003041,6]
[327681825,1716313849380,-4130.26,0.0003041,6]
[327681826,1716313849390,-461.32264887,0.0003041,6]
[327681827,1716313849400,-763.7,0.0003041,6]
[327681828,1716313849410,-500.0,0.0003041,6]
[327681829,1716313849420,-156.758012,0.0003041,7]
[327681830,1716313849430,-1058.46,0.0003041,6]
[327681831,1716313849440,-500.0,0.0003041,6]
[327681832,1716313849450,-500.0,0.0003041,6]
[327681833,1716313849460,-1565.62,0.0003041,6]
[327681834,1716313849471,-2660.06,0.0003041,6]
[327681835,1716313849480,-424.5,0.0003041,6]
[327681836,1716313849490,-500.0,0.0003041,6]
[327681837,1716313849500,-151.0,0.0003041,7]
[327681838,1716313849510,-500.0,0.0003041,6]
[327681839,1716313849519,-500.0,0.0003041,6]
[327681840,1716313849530,-500.0,0.0003041,6]
[327681841,1716313849540,-1141.76,0.0003041,6]
[327681842,1716313849550,-500.0,0.0003041,6]
[327681843,1716313849559,-500.0,0.0003041,6]
[327681844,1716313849569,-500.0,0.0003041,6]
[327681845,1716313849579,-500.0,0.0003041,6]
[327681846,1716313849589,-644.29,0.0003041,6]
[327681847,1716313849599,-500.0,0.0003041,6]
[327681848,1716313849609,-329.05436091,0.0003041,6]
[327681849,1716313849619,-500.0,0.0003041,6]
[327681850,1716313849628,-500.0,0.0003041,6]
[327681851,1716313849638,-500.0,0.0003041,6]
[327681852,1716313849648,-1522.3,0.0003041,6]
[327681853,1716313849658,-704.86,0.0003041,6]
[327681854,1716313849668,-500.0,0.0003041,6]
[327681855,1716313849678,-518.11,0.0003041,6]
[327681856,1716313849688,-856.42,0.0003041,6]
[327681857,1716313849697,-500.0,0.0003041,6]
[327681858,1716313849707,-500.0,0.0003041,6]
[327681859,1716313849716,-683.66,0.0003041,6]
[327681860,1716313849726,-500.0,0.0003041,6]
[327681861,1716313849736,-9511.22,0.0003041,6]
[327681862,1716313849746,-500.0,0.0003041,6]
[327681863,1716313849755,-823.75,0.0003041,6]
[327681864,1716313849765,-500.0,0.0003041,6]
[327681865,1716313849774,-2878.14,0.0003041,6]
[327681866,1716313849783,-552.09,0.0003041,6]
[327681867,1716313849792,-500.0,0.0003041,6]
[327681868,1716313849802,-500.0,0.0003041,6]
[327681869,1716313849811,-500.0,0.0003041,6]
[327681870,1716313849820,-500.0,0.0003041,6]
[327681871,1716313849829,-880.84,0.0003041,6]
[327681872,1716313849840,-500.0,0.0003041,6]
[327681873,1716313849849,-500.0,0.0003041,6]
[327681874,1716313849859,-500.0,0.0003041,6]
[327681875,1716313849868,-1813.8,0.0003041,6]
[327681876,1716313849878,-500.0,0.0003041,6]
[327681877,1716313849888,-500.0,0.0003041,6]
[327681878,1716313849897,-1594.29,0.0003041,6]
[327681879,1716313849907,-1377.92,0.0003041,6]
[327681880,1716313849917,-626.08,0.0003041,6]
[327681881,1716313849927,-219.27458158,0.0003041,6]
[327681882,1716313849936,-500.0,0.0003041,6]
[327681883,1716313849946,-643.98,0.0003041,6]
[327681884,1716313849956,-516.9234155,0.0003041,6]
[327681885,1716313849965,-9144.25,0.0003041,6]
[327681886,1716313849975,-500.0,0.0003041,6]
[327681887,1716313849987,-500.0,0.0003041,6]
[327681888,1716313849997,-151.0,0.0003041,7]
[327681889,1716313850006,-2374.01,0.0003041,6]
[327681890,1716313850016,-500.0,0.0003041,6]
[327681891,1716313850027,-500.0,0.0003041,6]
[327681892,1716313850036,-500.0,0.0003041,6]
[327681893,1716313850046,-2504.01,0.0003041,6]
[327681894,1716313850058,-1802.01,0.0003041,6]
[327681895,1716313850068,-2948.95,0.0003041,6]
[327681896,1716313850078,-2629.43,0.0003041,6]
[327681897,1716313850089,-500.0,0.0003041,6]
[327681898,1716313850099,-500.0,0.0003041,6]
[327681899,1716313850108,-555.45,0.0003041,6]
[327681900,1716313850118,-1442.73,0.0003041,6]
[327681901,1716313850127,-500.0,0.0003041,6]